bitfinex/quotes_SOLUSD_20250321
["timestamp","ask_amount","ask_price","bid_price","bid_amount"]
[1742569142687,0.03,127.08,127.07,455.23248398]
[1742569142882,0.03,127.08,127.07,497.05936724]
[1742569145505,0.03,127.12,127.11,39.21829514]
[1742569145790,0.03,127.12,127.11,141.40058956]
[1742569147785,0.03,127.12,127.11,149.26778956]
[1742569147991,0.03,127.12,127.11,150.84036247]
[1742569148590,0.03,127.12,127.11,462.84036247]
[1742569148893,0.03,127.12,127.11,461.26778956]
[1742569149976,0.03,127.12,127.11,669.18778956]
[1742569151583,0.03,127.12,127.11,647.37829514]
[1742569151888,0.03,127.12,127.11,627.093972]
[1742569152386,0.03,127.12,127.11,627.37829514]
[1742569153190,0.03,127.12,127.11,627.093972]
[1742569153381,0.03,127.12,127.11,627.37829514]
[1742569154590,0.03,127.12,127.11,641.32058956]
[1742569157089,0.03,127.12,127.11,560.12058956]
[1742569157673,0.03,127.12,127.11,567.98778956]
[1742569158097,0.03,127.12,127.11,560.12058956]
[1742569158588,0.03,127.12,127.11,567.98778956]
[1742569158992,0.03,127.12,127.11,560.12058956]
[1742569159190,0.03,127.12,127.11,546.17829514]
[1742569159495,0.03,127.12,127.11,338.25829514]
[1742569160492,0.03,127.12,127.11,352.20058956]
[1742569161572,0.03,127.12,127.11,40.20058956]
[1742569164597,0.03,127.12,127.11,352.20058956]
[1742569164796,0.03,127.12,127.11,40.20058956]
[1742569167885,0.03,127.12,127.11,352.20058956]
[1742569169008,0.03,127.12,127.11,560.08058956]
[1742569169308,0.03,127.12,127.11,567.94778956]
[1742569169709,0.03,127.12,127.11,255.94778956]
[1742569171986,0.03,127.12,127.11,337.14778956]
[1742569172399,0.063,127.13,127.12,19.21829514]
[1742569172587,0.063,127.13,127.12,346.73295206]
[1742569172795,0.063,127.13,127.12,345.16058956]
[1742569173393,0.063,127.15,127.14,39.21829514]
[1742569173712,0.063,127.15,127.14,191.70190377]
[1742569173898,0.063,127.15,127.14,190.12976724]
[1742569174505,0.03,127.16,127.15,19.21829514]
[1742569174693,0.03,127.16,127.15,41.77260711]
[1742569175395,0.03,127.16,127.15,49.63730711]
[1742569176307,0.03,127.16,127.15,361.63730711]
[1742569176504,0.03,127.21,127.15,360.56528956]
[1742569176713,0.03,127.21,127.2,33.16058956]
[1742569176893,0.03,127.21,127.2,40.20058956]
[1742569180012,0.03,127.21,127.2,352.20058956]
[1742569182005,0.03,127.21,127.2,338.25829514]
[1742569182314,0.03,127.21,127.2,352.20058956]
[1742569182712,0.03,127.21,127.2,40.20058956]
[1742569183322,0.03,127.21,127.2,26.25829514]
[1742569184103,0.03,127.21,127.2,19.21829514]
[1742569184295,20.28059442,127.21,127.2,25.83181043]
[1742569184902,6.3383,127.21,127.2,25.83181043]
[1742569185415,0.03,127.21,127.2,40.20058956]
[1742569187522,0.03,127.21,127.2,26.25829514]
[1742569189208,0.03,127.21,127.2,19.21829514]
[1742569189519,0.03,127.21,127.2,26.25829514]
[1742569191024,0.03,127.21,127.2,40.20058956]
[1742569191627,0.03,127.21,127.2,26.25829514]
[1742569196119,0.03,127.21,127.2,26.11613357]
[1742569197632,0.03,127.21,127.2,26.25829514]
[1742569199310,0.03,127.21,127.2,25.83181043]
[1742569199814,21.83329442,127.21,127.2,7.04]
[1742569200428,7.891,127.21,127.2,7.04]
[1742569201339,0.03,127.21,127.2,25.83181043]
[1742569202837,0.03,127.21,127.2,26.25829514]
[1742569203729,21.83329442,127.21,127.2,7.04]
[1742569204739,7.891,127.21,127.2,7.04]
[1742569204919,0.03,127.21,127.2,7.60864628]
[1742569205632,0.03,127.21,127.2,7.46648471]
[1742569205832,0.03,127.21,127.2,7.60864628]
[1742569207117,13.97229442,127.21,127.2,7.18216157]
[1742569207319,13.97229442,127.21,127.2,7.04]
[1742569207718,0.03,127.21,127.2,7.04]
[1742569207918,7.891,127.21,127.2,7.04]
[1742569208139,21.83329442,127.21,127.2,7.04]
[1742569208827,7.891,127.21,127.2,7.04]
[1742569209141,21.83329442,127.21,127.2,7.04]
[1742569210215,41.48579442,127.21,127.18,18.79181043]
[1742569210441,13.94229442,127.2,127.19,7.04]
[1742569211343,7.8622,127.19,127.18,18.79181043]
[1742569211645,7.8622,127.19,127.18,25.83181043]
[1742569213624,7.8622,127.19,127.16,326.28961756]
[1742569213625,42.97129442,127.19,127.16,0.063]
[1742569213827,13.94229442,127.17,127.16,0.063]
[1742569214846,13.94229442,127.18,127.16,18.85481043]
[1742569215038,9.3734,127.19,127.16,18.85481043]
[1742569215223,13.94229442,127.18,127.16,18.85481043]
[1742569215741,9.3734,127.19,127.16,18.85481043]
[1742569215939,13.94229442,127.18,127.16,18.85481043]
[1742569216146,23.31569442,127.19,127.16,18.85481043]
[1742569216525,23.31569442,127.19,127.16,330.85481043]
[1742569216718,13.94229442,127.18,127.16,18.85481043]
[1742569216924,13.94229442,127.17,127.16,19.28129514]
[1742569217445,13.94229442,127.17,127.16,18.85481043]
[1742569217743,13.94229442,127.17,127.16,7.24516157]
[1742569218124,21.80509442,127.18,127.16,7.24516157]
[1742569219443,21.80569442,127.17,127.16,7.103]
[1742569219748,21.80569442,127.17,127.12,7.103]
[1742569219749,1.5585,127.16,127.12,7.103]
[1742569219969,13.94229442,127.13,127.12,7.24516157]
[1742569220254,13.94229442,127.13,127.12,7.103]
[1742569220648,13.94229442,127.15,127.12,25.89481043]
[1742569220845,15.50079442,127.16,127.13,18.79181043]
[1742569221231,13.94229442,127.15,127.13,18.79181043]
[1742569221430,13.94229442,127.15,127.13,18.64964886]
[1742569221728,21.80729442,127.15,127.13,18.64964886]
[1742569221928,7.865,127.15,127.13,18.64964886]
[1742569222160,23.36519442,127.16,127.13,18.64964886]
[1742569222923,23.36519442,127.16,127.13,18.79181043]
[1742569222924,13.94229442,127.14,127.13,18.79181043]
[1742569223948,21.80759442,127.14,127.13,330.79181043]
[1742569224140,21.80729442,127.15,127.13,330.79181043]
[1742569226051,7.865,127.15,127.13,330.79181043]
[1742569228347,21.80729442,127.15,127.13,330.79181043]
[1742569228652,7.865,127.15,127.13,330.79181043]
[1742569229140,21.80729442,127.15,127.13,330.79181043]
[1742569230157,9.4229,127.16,127.13,330.79181043]
[1742569230535,23.36519442,127.16,127.13,330.79181043]
[1742569230952,7.8644,127.16,127.14,0.14216157]
[1742569231136,21.83539442,127.18,127.15,18.64964886]
[1742569231336,7.8931,127.18,127.16,7.04]
[1742569231737,0.03,127.18,127.17,18.79181043]
[1742569234055,0.03,127.18,127.17,330.79181043]
[1742569235162,13.97229442,127.18,127.17,312.0]
[1742569235347,13.97229442,127.18,127.16,7.04]
[1742569235654,13.94229442,127.17,127.16,7.04]
[1742569236257,21.80569442,127.17,127.16,7.04]
[1742569237767,7.8634,127.17,127.16,7.04]
[1742569238260,7.8932,127.18,127.16,319.04]
[1742569238857,21.83549442,127.18,127.16,319.04]
[1742569241160,7.8932,127.18,127.16,319.04]
[1742569242169,7.8932,127.18,127.16,319.103]
[1742569244467,7.8932,127.18,127.16,7.103]
[1742569245063,21.83549442,127.18,127.16,7.103]
[1742569245367,13.94229442,127.17,127.16,7.103]
[1742569245539,21.83549442,127.18,127.16,7.103]
[1742569247546,0.03,127.21,127.17,409.29316724]
[1742569247747,0.03,127.25,127.2,14.5109407]
[1742569247948,0.03,127.25,127.23,18.79181043]
[1742569248352,21.83099442,127.25,127.22,18.79181043]
[1742569248560,13.97229442,127.25,127.22,18.79181043]
[1742569250469,33.94229442,127.23,127.22,7.04]
[1742569250857,13.94229442,127.24,127.22,7.04]
[1742569251164,13.94229442,127.24,127.22,319.04]
[1742569251844,7.889,127.25,127.23,18.79181043]
[1742569251845,0.03,127.25,127.23,18.79181043]
[1742569253065,13.97229442,127.25,127.23,18.79181043]
[1742569253474,0.03,127.25,127.23,18.79181043]
[1742569254170,13.97229442,127.25,127.22,7.04]
[1742569256075,21.83079442,127.25,127.23,312.0]
[1742569256777,13.94229442,127.24,127.22,7.04]
[1742569256970,13.94229442,127.23,127.2,207.86]
[1742569257173,13.94229442,127.22,127.21,7.04]
[1742569258278,21.80259442,127.22,127.21,7.04]
[1742569258470,21.80259442,127.22,127.2,207.86]
[1742569258671,13.94229442,127.21,127.2,7.04]
[1742569258855,13.94229442,127.21,127.19,7.04]
[1742569259049,13.94229442,127.2,127.17,18.79181043]
[1742569259463,13.94229442,127.21,127.17,14.08445599]
[1742569259666,13.94229442,127.21,127.18,18.64964886]
[1742569259850,13.94229442,127.2,127.17,312.14216157]
[1742569260355,21.80449442,127.19,127.18,7.04]
[1742569261370,29.60098682,127.19,127.18,7.04]
[1742569264268,49.25658682,127.19,127.16,0.063]
[1742569264580,21.73878682,127.17,127.16,7.103]
[1742569264761,29.60218682,127.17,127.16,7.103]
[1742569265272,29.60188682,127.18,127.16,7.103]
[1742569265853,21.73878682,127.17,127.16,7.103]
[1742569266373,29.60188682,127.18,127.16,7.103]
[1742569266691,7.8631,127.18,127.16,7.103]
[1742569266987,21.73878682,127.18,127.16,7.103]
[1742569268877,7.8634,127.17,127.16,7.103]
[1742569269056,29.60218682,127.17,127.16,0.063]
[1742569270063,31.22088682,127.17,127.16,0.0001]
[1742569272669,71.72088682,127.17,127.16,0.0001]
[1742569277487,31.22088682,127.17,127.16,0.0001]
[1742569280872,31.25088682,127.17,127.16,0.0001]
[1742569281480,29.63218682,127.17,127.16,0.0001]
[1742569281679,7.8934,127.17,127.16,0.0001]
[1742569281876,29.63218682,127.17,127.16,0.0001]
[1742569283288,21.80697045,127.17,127.16,0.0001]
[1742569284712,7.8934,127.17,127.16,312.0001]
[1742569285080,21.80697045,127.17,127.16,312.0001]
[1742569286072,7.8934,127.17,127.16,312.0001]
[1742569287894,0.03,127.17,127.16,312.0001]
[1742569288494,13.94357045,127.17,127.16,312.0001]
[1742569289593,0.03,127.17,127.16,312.0001]
[1742569289980,7.8934,127.17,127.16,312.0001]
[1742569290477,21.80697045,127.17,127.16,312.0001]
[1742569292485,13.94357045,127.17,127.16,312.0001]
[1742569292680,0.03,127.17,127.16,312.0001]
[1742569293097,0.03,127.17,127.16,0.0001]
[1742569294811,0.03,127.17,127.16,14.48231673]
[1742569295513,0.03,127.17,127.16,33.13196559]
[1742569295998,0.03,127.17,127.16,345.13196559]
[1742569296506,0.03,127.17,127.16,352.99606559]
[1742569297010,0.03,127.17,127.16,331.21839514]
[1742569299109,0.03,127.17,127.16,330.64974886]
[1742569299319,0.03,127.17,127.16,25.66974886]
[1742569300707,0.03,127.17,127.16,26.23839514]
[1742569300898,0.03,127.17,127.16,40.15196559]
[1742569301100,0.03,127.17,127.16,48.01606559]
[1742569301697,0.03,127.17,127.16,40.15196559]
[1742569302506,0.03,127.17,127.16,352.15196559]
[1742569303514,0.03,127.17,127.16,338.23839514]
[1742569304103,0.03,127.17,127.16,352.15196559]
[1742569306216,0.03,127.17,127.16,338.23839514]
[1742569306603,21.80697045,127.17,127.16,25.66974886]
[1742569307217,7.8934,127.17,127.16,25.66974886]
[1742569309812,7.8934,127.17,127.16,337.66974886]
[1742569310904,0.03,127.17,127.16,337.66974886]
[1742569311219,0.03,127.17,127.16,351.58331931]
[1742569311611,0.03,127.17,127.16,337.66974886]
[1742569313817,0.03,127.17,127.16,312.0001]
[1742569314000,13.94357045,127.17,127.16,319.0201]
[1742569314520,0.03,127.17,127.16,319.0201]
[1742569314911,0.03,127.17,127.16,0.0001]
[1742569315122,21.80697045,127.17,127.16,7.0201]
[1742569317319,21.80697045,127.17,127.16,0.0001]
[1742569330734,20.0,127.14,127.12,0.063]
[1742569330984,13.91357045,127.11,127.1,0.063]
[1742569331115,13.91357045,127.11,127.1,7.083]
[1742569331615,13.91357045,127.12,127.1,7.083]
[1742569331819,21.78077045,127.11,127.1,7.083]
[1742569332319,7.8672,127.11,127.1,7.083]
[1742569332533,21.78077045,127.11,127.1,7.083]
[1742569333144,7.8672,127.11,127.1,25.73264886]
[1742569333637,21.78077045,127.11,127.1,7.083]
[1742569335936,21.78077045,127.11,127.1,0.063]
[1742569336914,21.78077045,127.11,127.05,0.28432314]
[1742569336915,41.44877045,127.11,127.05,0.28432314]
[1742569337217,13.91357045,127.07,127.06,7.02]
[1742569337417,13.91357045,127.07,127.04,18.71264886]
[1742569337639,1.5316,127.1,127.05,7.02]
[1742569337640,13.91357045,127.06,127.05,7.02]
[1742569337815,21.78377045,127.06,127.05,7.02]
[1742569338221,7.8702,127.06,127.05,7.02]
[1742569338433,21.78287045,127.08,127.05,7.02]
[1742569338943,21.78287045,127.08,127.05,319.02]
[1742569339148,13.91357045,127.07,127.05,319.02]
[1742569339643,13.91357045,127.06,127.05,319.02]
[1742569339844,21.78377045,127.06,127.05,312.0]
[1742569340630,21.78377045,127.06,127.04,7.083]
[1742569340935,13.91357045,127.05,127.04,7.083]
[1742569341748,13.91357045,127.05,127.04,0.063]
[1742569341941,21.78447045,127.05,127.04,7.103]
[1742569343240,21.78447045,127.05,127.04,0.063]
[1742569343645,7.8696,127.07,127.04,312.063]
[1742569343946,21.78317045,127.07,127.04,312.063]
[1742569344944,13.91357045,127.06,127.04,312.063]
[1742569346347,21.78417045,127.06,127.04,312.063]
[1742569346741,21.78417045,127.06,127.04,0.063]
[1742569347128,7.8691,127.08,127.04,18.71264886]
[1742569347333,21.78267045,127.08,127.05,7.04]
[1742569348134,7.8691,127.08,127.05,20.95357045]
[1742569348644,21.78227045,127.09,127.06,18.64964886]
[1742569348826,7.8687,127.09,127.06,32.56321931]
[1742569349029,21.78167045,127.1,127.06,32.56321931]
[1742569349258,21.81097045,127.11,127.07,13.91357045]
[1742569349853,21.81097045,127.11,127.07,325.91357045]
[1742569350446,13.91357045,127.1,127.07,312.0]
[1742569352635,21.78197045,127.09,127.07,312.0]
[1742569353267,21.78167045,127.1,127.08,18.64964886]
[1742569353562,7.8681,127.1,127.09,7.04]
[1742569354541,0.03,127.11,127.09,7.04]
[1742569354965,13.91357045,127.1,127.09,7.04]
[1742569355640,13.91357045,127.1,127.06,0.063]
[1742569355842,13.91357045,127.07,127.06,7.103]
[1742569356758,21.78317045,127.07,127.06,7.103]
[1742569356946,41.45727045,127.07,127.04,0.063]
[1742569357260,13.91357045,127.05,127.03,0.063]
[1742569357568,13.91357045,127.04,127.03,0.063]
[1742569358542,21.78507045,127.04,127.03,312.063]
[1742569359151,29.65817283,127.04,127.03,312.063]
[1742569360465,29.65817283,127.04,127.03,0.063]
[1742569360651,29.65817283,127.04,127.03,0.0001]
[1742569364865,7.8715,127.04,127.03,0.0001]
[1742569366046,21.78667283,127.04,127.03,0.0001]
[1742569367873,29.65817283,127.04,127.03,0.0001]
[1742569368049,29.65817283,127.04,127.03,312.0001]
[1742569368762,19.6741,127.07,127.03,312.0001]
[1742569368763,29.65787283,127.05,127.03,312.0001]
[1742569368966,7.8712,127.05,127.03,312.0001]
[1742569369361,21.78667283,127.04,127.03,312.0001]
[1742569369877,29.65817283,127.04,127.03,312.0001]
[1742569370187,29.65817283,127.04,127.03,0.0001]
[1742569371751,31.32087283,127.04,127.03,0.0001]
[1742569374059,53.10754566,127.04,127.03,0.0001]
[1742569374570,112.17394566,127.04,127.0,0.063]
[1742569374762,21.78667283,127.01,127.0,0.063]
[1742569376980,29.65997283,127.01,127.0,0.063]
[1742569377376,29.65997283,127.01,127.0,0.0001]
[1742569379260,21.83106522,127.01,127.0,0.0001]
[1742569381566,82.40496522,127.01,126.97,0.063]
[1742569381770,13.95776522,126.98,126.97,0.063]
[1742569382867,20.0,126.95,126.94,0.063]
[1742569383078,41.83486522,126.95,126.94,0.063]
[1742569383984,7.8771,126.95,126.94,0.063]
[1742569384178,7.8766,126.96,126.94,0.063]
[1742569384483,7.8752,126.98,126.95,32.60741408]
[1742569384775,7.8749,126.99,126.96,20.99776522]
[1742569385077,21.83266522,126.99,126.96,7.04]
[1742569386482,7.8749,126.99,126.96,20.99776522]
[1742569387066,7.8749,126.99,126.96,7.04]
[1742569387272,7.8749,126.99,126.96,28.83935329]
[1742569387577,7.8749,126.99,126.96,7.04]
[1742569388281,7.8749,126.99,126.97,40.44900215]
[1742569389365,27.5872,127.01,126.97,40.44900215]
[1742569389960,27.5872,127.01,126.98,21.79935329]
[1742569390379,27.5872,127.01,126.99,21.79935329]
[1742569390380,7.9033,127.01,126.99,21.79935329]
[1742569390564,7.9033,127.01,127.0,7.04]
[1742569391181,21.82935329,127.01,127.0,7.04]
[1742569392175,0.03,127.01,127.0,7.04]
[1742569393185,7.9033,127.01,127.0,7.04]
[1742569394788,49.38605329,127.01,126.98,330.64964886]
[1742569395089,49.38605329,127.01,126.96,21.79935329]
[1742569395090,21.79935329,126.99,126.96,18.64964886]
[1742569395386,21.79935329,126.98,126.96,18.64964886]
[1742569395586,21.79935329,126.99,126.96,18.64964886]
[1742569395882,21.79935329,127.0,126.96,18.64964886]
[1742569396191,49.38605329,127.01,126.97,25.68964886]
[1742569396587,49.38605329,127.01,126.97,47.48900215]
[1742569397684,7.9033,127.01,126.99,18.64964886]
[1742569398091,7.9033,127.01,126.99,330.64964886]
[1742569398891,29.70265329,127.01,126.99,330.64964886]
[1742569400891,7.9033,127.01,126.99,330.64964886]
[1742569401474,0.03,127.01,127.0,22.36799957]
[1742569401788,0.03,127.01,127.0,41.01764843]
[1742569402394,0.03,127.01,127.0,48.89164843]
[1742569403366,0.03,127.01,127.0,41.01764843]
[1742569404192,0.03,127.01,127.0,19.21829514]
[1742569404401,0.03,127.01,127.0,41.01764843]
[1742569404571,0.03,127.01,127.0,353.01764843]
[1742569404773,0.03,127.01,127.0,18.79181043]
[1742569405088,21.82935329,127.01,127.0,7.04]
[1742569406289,29.70265329,127.01,127.0,7.04]
[1742569406895,49.38605329,127.01,126.97,19.28129514]
[1742569407190,21.79935329,127.0,126.97,19.28129514]
[1742569407791,21.79935329,127.0,126.97,331.28129514]
[1742569408090,21.79935329,127.0,126.98,7.02]
[1742569408504,7.8746,126.99,126.98,25.66964886]
[1742569409286,7.8746,126.99,126.98,26.23829514]
[1742569409498,7.8746,126.99,126.98,48.03764843]
[1742569410691,19.7134,127.01,127.0,18.64964886]
[1742569410996,41.51275329,127.01,127.0,18.64964886]
[1742569411496,19.7134,127.01,127.0,18.64964886]
[1742569412595,19.7134,127.01,127.0,330.64964886]
[1742569412784,27.5867,127.01,127.0,330.64964886]
[1742569413297,49.38605329,127.01,127.0,312.0]
[1742569413480,49.38605329,127.01,126.98,7.02]
[1742569413680,21.79935329,127.0,126.97,18.85481043]
[1742569413876,27.5867,127.01,126.98,7.16216157]
[1742569414188,7.9033,127.01,126.99,0.42648471]
[1742569414386,7.9033,127.01,127.0,18.64964886]
[1742569415795,7.9033,127.01,126.99,312.42648471]
[1742569416100,7.9033,127.01,127.0,18.64964886]
[1742569417694,7.9033,127.01,126.99,0.42648471]
[1742569420385,0.03,127.01,127.0,0.14216157]
[1742569420592,0.03,127.01,127.0,312.56864628]
[1742569421682,0.03,127.01,127.0,334.36799957]
[1742569422600,0.03,127.01,127.0,353.01764843]
[1742569422803,0.03,127.01,127.0,360.89164843]
[1742569422993,0.03,127.01,127.0,48.89164843]
[1742569423193,0.03,127.01,127.0,50.4656513]
[1742569423704,0.03,127.01,127.0,131.6656513]
[1742569425988,0.03,127.04,127.02,0.14216157]
[1742569426192,0.03,127.04,127.03,56.0523085]
[1742569428007,0.03,127.04,127.03,63.9244085]
[1742569428602,0.03,127.04,127.03,145.1244085]
[1742569429505,0.03,127.04,127.03,457.1244085]
[1742569429704,0.03,127.04,127.03,455.55084843]
[1742569429904,0.03,127.04,127.03,447.67874843]
[1742569430803,0.03,127.04,127.03,441.23764843]
[1742569431189,0.03,127.04,127.03,440.95332529]
[1742569431389,0.03,127.04,127.03,441.23764843]
[1742569432407,0.03,127.04,127.03,360.03764843]
[1742569434189,0.03,127.04,127.03,48.03764843]
[1742569434390,0.03,127.04,127.03,19.21829514]
[1742569434596,0.03,127.04,127.03,26.23829514]
[1742569435486,0.03,127.04,127.03,25.66964886]
[1742569435487,21.82935329,127.04,127.03,25.66964886]
[1742569435907,0.03,127.04,127.03,25.66964886]
[1742569436190,7.9015,127.04,127.03,25.66964886]
[1742569436787,7.9015,127.04,127.03,26.23829514]
[1742569437410,7.9015,127.04,127.03,338.23829514]
[1742569438205,7.9015,127.04,127.03,26.23829514]
[1742569440316,0.03,127.04,127.03,26.23829514]
[1742569441297,0.03,127.04,127.03,338.23829514]
[1742569442615,0.03,127.04,127.03,337.66964886]
[1742569442809,21.82935329,127.04,127.03,337.66964886]
[1742569443010,21.82935329,127.04,127.02,18.64964886]
[1742569443211,21.82935329,127.04,127.03,7.02]
[1742569444407,29.70085329,127.04,127.03,7.02]
[1742569445023,49.37965329,127.04,127.01,18.64964886]
[1742569445316,21.79935329,127.02,127.0,208.103]
[1742569446220,23.40345329,127.03,127.0,208.103]
[1742569446600,7.8727,127.02,127.01,7.02]
[1742569448424,29.67205329,127.02,127.01,7.02]
[1742569449329,21.8195634,127.02,127.01,7.02]
[1742569451038,21.8195634,127.02,127.01,0.063]
[1742569451224,21.8195634,127.02,127.01,0.0001]
[1742569452510,21.8195634,127.02,127.0,0.0001]
[1742569452511,77.607017,127.02,127.0,0.0001]
[1742569452711,13.9468634,127.01,127.0,0.0001]
[1742569453112,13.9468634,127.01,126.98,0.063]
[1742569453320,15.5079634,126.99,126.98,0.0001]
[1742569454330,23.3825634,126.99,126.98,0.0001]
[1742569455112,31.24664989,126.99,126.98,0.0001]
[1742569459822,90.30624989,126.99,126.95,7.02]
[1742569460017,21.81094989,126.96,126.95,7.02]
[1742569460218,21.81094989,126.96,126.94,208.123]
[1742569460426,21.81094989,126.95,126.94,215.143]
[1742569460625,21.81094989,126.96,126.94,215.143]
[1742569460842,21.81094989,126.97,126.94,215.143]
[1742569461340,21.81094989,126.96,126.94,215.143]
[1742569461719,21.31094989,126.96,126.94,215.143]
[1742569461918,21.81094989,126.97,126.94,215.143]
[1742569462721,21.81094989,126.97,126.94,527.143]
[1742569462928,7.8771,126.95,126.94,545.79264886]
[1742569463545,7.8771,126.95,126.94,538.77264886]
[1742569463722,7.8771,126.95,126.94,545.79264886]
[1742569464944,7.8767,126.96,126.94,545.79264886]
[1742569465322,29.68764989,126.96,126.94,545.79264886]
[1742569465644,29.68764989,126.96,126.94,527.143]
[1742569466245,29.68764989,126.96,126.94,319.083]
[1742569467944,29.68764989,126.96,126.94,7.083]
[1742569468326,21.81094989,126.95,126.94,0.063]
[1742569469243,29.68804989,126.95,126.94,0.063]
[1742569471252,29.68804989,126.95,126.93,0.063]
[1742569471460,21.81094989,126.94,126.93,0.063]
[1742569472565,29.68864989,126.94,126.93,0.063]
[1742569473054,31.33934989,126.94,126.93,0.0001]
[1742569474937,29.68864989,126.94,126.93,0.0001]
[1742569475351,21.84440111,126.94,126.93,0.0001]
[1742569484834,7.8777,126.94,126.93,0.0001]
[1742569485654,21.84440111,126.94,126.93,0.0001]
[1742569487641,7.8777,126.94,126.93,0.0001]
[1742569487843,21.84440111,126.94,126.93,0.0001]
[1742569491462,46.5733,126.93,126.91,0.0399]
[1742569491665,46.5733,126.93,126.9,0.0001]
[1742569491666,54.46670111,126.92,126.9,0.0001]
[1742569491865,13.96670111,126.91,126.9,0.0001]
[1742569493465,21.84620111,126.91,126.9,0.0001]
[1742569493672,77.71300555,126.91,126.9,0.0001]
[1742569493974,79.26920555,126.91,126.9,0.0001]
[1742569494273,20.0,126.88,126.87,0.0001]
[1742569494466,74.46670111,126.88,126.87,0.0001]
[1742569495265,88.57092614,126.88,126.85,0.0001]
[1742569495467,21.85542614,126.86,126.85,0.0001]
[1742569496165,29.73812614,126.86,126.85,0.0001]
[1742569496346,31.31872614,126.86,126.85,0.0001]
[1742569504974,71.81872614,126.86,126.85,0.0001]
[1742569508956,20.0,126.83,126.81,0.063]
[1742569509162,21.85542614,126.82,126.81,0.063]
[1742569510383,29.74052614,126.82,126.81,0.063]
[1742569511158,7.8851,126.82,126.81,0.063]
[1742569511964,7.8848,126.83,126.81,340.93842614]
[1742569512187,7.8839,126.84,126.81,340.93842614]
[1742569514288,29.73932614,126.84,126.81,319.083]
[1742569514468,21.85542614,126.83,126.81,319.083]
[1742569514668,21.85542614,126.82,126.81,0.063]
[1742569516467,29.74052614,126.82,126.81,0.063]
[1742569516884,29.74052614,126.82,126.81,0.0001]
[1742569517091,40.5,126.81,126.8,0.0001]
[1742569517387,62.35542614,126.81,126.8,0.0001]
[1742569517601,62.35542614,126.81,126.79,0.0001]
[1742569517770,21.85542614,126.8,126.79,0.0001]
[1742569518769,29.74182614,126.8,126.79,0.0001]
[1742569519886,21.85542614,126.81,126.79,0.0001]
[1742569520088,7.8861,126.81,126.79,0.0001]
[1742569520401,7.8854,126.82,126.79,21.85552614]
[1742569521203,7.8854,126.82,126.79,40.505175]
[1742569522070,7.8848,126.83,126.8,21.85542614]
[1742569522299,7.8848,126.83,126.81,7.02]
[1742569523019,7.8848,126.83,126.81,319.02]
[1742569523686,29.74022614,126.83,126.81,319.02]
[1742569524604,7.8848,126.83,126.81,319.02]
[1742569524908,29.80322614,126.83,126.81,319.02]
[1742569525470,21.85542614,126.82,126.81,7.02]
[1742569526782,29.74052614,126.82,126.81,7.02]
[1742569527686,7.8851,126.82,126.81,7.02]
[1742569528207,29.74052614,126.82,126.81,7.02]
[1742569529198,21.91842614,126.83,126.81,7.02]
[1742569529413,0.063,126.83,126.81,7.02]
[1742569530713,7.9475,126.83,126.81,7.02]
[1742569534199,7.9475,126.83,126.81,319.02]
[1742569534520,21.91842614,126.83,126.81,319.02]
[1742569535604,21.85542614,126.82,126.81,7.02]
[1742569536705,29.74052614,126.82,126.81,7.02]
[1742569538207,29.74052614,126.82,126.79,0.0001]
[1742569538384,29.74052614,126.82,126.79,7.0201]
[1742569538589,29.74052614,126.82,126.79,319.0201]
[1742569540908,7.8851,126.82,126.79,312.0001]
[1742569541129,7.8851,126.82,126.79,319.0201]
[1742569541309,7.8851,126.82,126.8,40.505075]
[1742569541700,7.8851,126.82,126.8,18.64964886]
[1742569542308,7.8851,126.82,126.79,7.0201]
[1742569542514,29.74052614,126.82,126.79,7.0201]
[1742569542814,21.85542614,126.81,126.79,7.0201]